Cogmind - Beta 15 @@@ ROGUE MODE // 2025.05.22 @ 12:18:57 Player: Chair Result: Destroyed by Striker with Compact Linear Accelerator Performance ------------- Evolutions (5) 2500 Regions Visited (7) 1400 Robots Destroyed (67) 335 Value Destroyed (3044) 3044 Prototype IDs (18) 360 Alien Tech Used (0) 0 Bonus (3781) 3781 TOTAL SCORE: 11420 Bonus ------- Registered with UFD 300 Met Optimus in HQ 500 Met Warlord at Base 500 MAIN.C Attacked Warlord 500 Warlord Defense Kills 2110 Friendly Fire -129 Cogmind --------- Core Integrity 0/1000 Matter 294/300 Energy 99/100 System Corruption 18% Temperature Cool (9) Movement Core (50) Location -5/Warlord Parts ------- > --- POWER (1) -------- (None) > --- PROPULSION (5) --- (None) > --- UTILITY (8) ------ Authchip [Propulsion] > --- WEAPON (3) ------- Plasma Lance > --- INVENTORY (5) ---- Makeshift Hover Unit Layered Heavy Armor Plating Peak State ------------ > --- POWER ------------ Improved Quantum Reactor > --- PROPULSION ------- Improved Treads Enhanced Biometal Leg Enhanced Biometal Leg Backup Propulsion III > --- UTILITY ---------- Experimental Heat Sink High-capacity Storage Unit Enhanced Optical Array Improved Signal Interpreter Improved Medium Armor Plating Improved Heavy Armor Plating Makeshift Hacking Suite > --- WEAPON ----------- Variable Charge Gun Variable Charge Gun Variable Charge Gun > --- INVENTORY -------- Neutrino Core Graviton Reactor Makeshift Hover Unit Makeshift Hover Unit Improved Coolant Injector Makeshift Microdissipator Network Matter Compressor Advanced Sensor Array Layered Heavy Armor Plating Authchip [Propulsion] A0-MCA's Component Scanner KE Penetrator KE Penetrator Enhanced Gauss Cannon Heavy Shock Bomb Launcher Makeshift Axe [Rating: 94] Favorites ----------- Power Graviton Reactor Engine Improved Deuterium Engine Power Core Neutrino Core Reactor Graviton Reactor Propulsion Light Treads Treads Light Treads Leg Enhanced Biometal Leg Wheel Overtuned Scrapsphere Hover Unit Backup Propulsion III Flight Unit Impulse Thruster Array Utility Makeshift Hacking Suite Device Makeshift Microdissipator Network Storage High-capacity Storage Unit Processor Improved Signal Interpreter Hackware Makeshift Hacking Suite Protection Improved Medium Armor Plating Weapon Variable Charge Gun Energy Gun Variable Charge Gun Ballistic Gun KE Penetrator Ballistic Cannon Slug Cannon Launcher Heavy Shock Bomb Launcher Impact Weapon Makeshift Hammer Slashing Weapon Makeshift Axe Piercing Weapon Plasma Lance Build | -11 -10 -10 -7 -5 -5 -5 -5 ------- Run | Yrd Mat Sub Scr Fac Upp Upp War Slots Evolved 10 | . . . . 10 . . . Power . | . . . . . . . . Propulsion 3 | . . . . 3 . . . Utility 6 | . . . . 6 . . . Weapon 1 | . . . . 1 . . . Parts Attached 71 | 6 2 . 20 19 7 3 14 Power 10 | 1 . . 3 3 1 . 2 Engine 5 | 1 . . 3 1 . . . Core 2 | . . . . 1 1 . . Reactor 3 | . . . . 1 . . 2 Propulsion 12 | 2 . . 5 . . 1 4 Treads 7 | 2 . . 4 . . 1 . Leg 2 | . . . . . . . 2 Wheel 1 | . . . 1 . . . . Hover . | . . . . . . . . Flight 2 | . . . . . . . 2 Utility 29 | 1 . . 6 14 2 1 5 Device 7 | . . . . 3 1 1 2 Storage 2 | 1 . . 1 . . . . Processor 4 | . . . . 4 . . . Hackware 4 | . . . . 3 . . 1 Protection 12 | . . . 5 4 1 . 2 Artifact . | . . . . . . . . Weapon 20 | 2 2 . 6 2 4 1 3 Energy Gun 7 | 2 . . 1 . 3 1 . Energy Cannon . | . . . . . . . . Ballistic Gun 3 | . . . 1 2 . . . Ballistic Cannon 5 | . 2 . 3 . . . . Launcher 2 | . . . . . 1 . 1 Special Weapon . | . . . . . . . . Impact Weapon 1 | . . . 1 . . . . Slashing Weapon 1 | . . . . . . . 1 Piercing Weapon 1 | . . . . . . . 1 Special Melee Weapon . | . . . . . . . . Unidentified Prototypes 7 | . . . . 1 . . 6 Corrupted Parts 1 | . . . . . . 1 . System Corruption 9 | . . . . . . 9 . Parts Lost 29 | . 2 . 2 3 2 2 18 Power 2 | . . . . . . . 2 Propulsion 8 | . . . 1 . 1 2 4 Utility 9 | . . . 1 1 1 . 6 Weapon 10 | . 2 . . 2 . . 6 Highest Loss Streak 12 | . 2 . 2 1 1 1 12 To Critical Strikes . | . . . . . . . . Average Backups 13 | 2 5 8 11 18 18 16 15 Power 1 | . 1 1 1 1 1 1 . Propulsion 1 | . 2 2 1 . 2 2 1 Utility 6 | . . 2 4 9 8 7 6 Weapon 4 | . 1 3 3 6 6 6 5 Tool/Special . | . . . . . . . . Unused Backups 23 | . . 1 7 4 4 . 7 Power 1 | . . . 1 . . . . Propulsion 4 | . . . 2 . . . 2 Utility 11 | . . . 3 2 2 . 4 Weapon 7 | . . 1 1 2 2 . 1 Tool/Special . | . . . . . . . . Average Slot Usage (%) 88 | . 85 85 98 85 82 77 77 Engine 7 | . 14 14 14 4 . . . Reactor 1 | . . . . . . 3 4 Treads 17 | . 28 28 27 16 11 6 4 Device 2 | . . . . 6 7 5 5 Storage 9 | . 14 14 14 5 5 5 4 Processor 5 | . . . . 12 12 11 10 Hackware 5 | . . . . 7 11 11 10 Protection 10 | . . . 12 9 7 10 10 Energy Gun 7 | . 13 . . . 16 16 15 Ballistic Cannon 13 | . 14 28 27 10 . . . Peak Build Rating 94 | 6 6 7 32 70 75 73 94 Average Rating 44 | 4 5 6 20 64 71 68 69 On Entrance 32 | . 6 6 7 32 70 71 68 Naked Turns 1 | . . . . . . . 1 Heaviest Build 94 | 14 16 16 68 86 84 85 94 Greatest Support 70 | 40 40 40 50 70 70 48 60 Greatest Overweight (x) 9 | . . . 9 1 1 3 3 Average Overweight (x) . | . . . . . . 2 1 Largest Inventory Capacity 20 | 8 8 8 20 20 20 20 20 Average Capacity 16 | 6 8 8 14 20 20 20 19 Most Carried 20 | 4 8 8 20 20 20 20 20 Average Carried 14 | 2 5 7 11 18 19 18 17 Final Capacity 20 | 8 8 8 20 20 20 20 5 Final Carried 20 | 4 8 8 20 20 20 18 3 Class Distribution -------------------- 42% | Mutant 31% | Scavenger-Tank 12% | Derelict-Tank 6% | Derelict-Mutant Dominant Class ---------------- Mutant | -10/Materials Mutant | -10/Subcaves Mutant | -7/Scraptown Derelict-Tank | -5/Factory Derelict-Tank | -5/Upper Caves Scavenger-Tank | -5/Upper Caves Scavenger-Tank | -5/Warlord Resources | -11 -10 -10 -7 -5 -5 -5 -5 ----------- Run | Yrd Mat Sub Scr Fac Upp Upp War Matter Collected 2688 | 194 164 . 594 656 571 219 290 Remotely 788 | . . . . 535 253 . . Salvage Created 3171 | 26 349 . 550 595 674 320 657 Parts 138 | 2 19 . 19 21 32 15 30 Haulers Intercepted 2 | . 2 . . . . . . Recyclers Shooed 2 | . . . . 2 . . . Parts Field Recycled . | . . . . . . . . Retrieved Matter . | . . . . . . . . Parts Self-Destructed 32 | . . 1 8 . 10 13 . Prevented 17 | . . . . . 15 2 . Kills | -11 -10 -10 -7 -5 -5 -5 -5 ------- Run | Yrd Mat Sub Scr Fac Upp Upp War Combat Hostiles Destroyed 60 | . 6 . 9 7 14 7 17 Guns 17 | . 2 . . 3 4 4 4 Cannons 16 | . 4 . 8 4 . . . AOE 21 | . . . . . 7 3 11 Classes Destroyed 14 | 1 3 . 3 3 1 1 2 Tunneler 1 | 1 . . . . . . . Hauler 2 | . 2 . . . . . . Recycler 3 | . . . . 3 . . . Watcher 1 | . 1 . . . . . . Swarmer 18 | . . . . . 7 4 7 Grunt 13 | . 6 . . 1 6 . . Sentry 3 | . . . . 2 1 . . Programmer 13 | . . . . 4 . 2 7 Behemoth 1 | . . . . . . 1 . Striker 2 | . . . . . . . 2 Executioner 1 | . . . . . . . 1 Bolteater 2 | . . . 2 . . . . Guru 1 | . . . 1 . . . . Scrapper 6 | . . . 6 . . . . Best Kill Streak 6 | 1 4 . 4 3 6 4 6 Combat Bots Only 6 | . 4 . 4 3 6 4 6 Max Kills in Single Turn 6 | 1 1 . 1 1 3 3 6 Gunslinging . | . . . . . . . . Exploded 6 | . . . . . 3 3 6 Melee . | . . . . . . . . Uniques/NPCs Destroyed . | . . . . . . . . Combat | -11 -10 -10 -7 -5 -5 -5 -5 -------- Run | Yrd Mat Sub Scr Fac Upp Upp War Hostile Shots Fired 483 | . 29 . 81 75 41 68 189 Missed 157 | . 9 . 14 19 15 30 70 Hits 326 | . 20 . 67 56 26 38 119 Melee 15 | . . . 10 . . . 5 Projectile 311 | . 20 . 57 56 26 38 114 AOE 2 | . . . . . . . 2 Critical Strikes 16 | . . . 1 6 2 2 5 Part Disruptions 2 | . . . . . . . 2 Damage Taken 6672 | . 245 . 948 1186 443 723 3127 Core 1243 | . 51 . 159 79 58 121 775 Absorbed by Shields . | . . . . . . . . Regen/Repaired (Parts) 498 | . . . . 183 . . 315 Core Remaining (%) 58 | 100 . . 16 . . . . Volleys Fired 150 | 3 27 1 23 34 18 19 25 Largest 3 | 2 2 2 2 3 3 3 3 Hottest 675 | 80 80 60 80 120 225 675 675 Shots Fired 306 | 6 53 2 46 84 30 41 44 Gun 162 | 6 33 . . 36 19 36 32 Cannon 116 | . 20 2 46 48 . . . Launcher 28 | . . . . . 11 5 12 Special . | . . . . . . . . Kinetic 160 | . 20 2 46 84 . . 8 Thermal 79 | . . . . . 19 36 24 Explosive . | . . . . . . . . Electromagnetic 65 | 6 33 . . . 11 5 10 Entropic 2 | . . . . . . . 2 Robot Hit Streak 9 | 4 6 1 7 7 5 9 6 Robot Miss Streak 4 | 1 4 1 3 3 4 4 4 Penetration Max 1 | . . . . . . . 1 Secondary Targets 1 | . . . . . . . 1 Max Gunslinging Chain 1 | . . . . . . . 1 Shots Hit Robots 173 | 5 33 1 29 47 10 22 26 Core Hits 109 | 1 12 . 10 21 19 12 34 Critical Kills 2 | . . . 2 . . . . Critical Parts Destroyed 6 | . . . 2 4 . . . Critical Strikes 11 | . 1 . 5 5 . . . Destroy 8 | . . . 3 5 . . . Blast 1 | . . . 1 . . . . Corrupt 1 | . 1 . . . . . . Smash 1 | . . . 1 . . . . Melee Attacks 10 | . . . 2 . . . 8 Impact 2 | . . . 2 . . . . Slashing . | . . . . . . . . Piercing 8 | . . . . . . . 8 Sneak Attacks . | . . . . . . . . Combat Hostiles . | . . . . . . . . Follow-up Attacks . | . . . . . . . . Damage Inflicted 8142 | 72 494 20 841 1300 847 1128 3440 Guns 2482 | 66 265 . . 523 116 804 708 Cannons 1816 | . 229 20 790 777 . . . Explosions 3787 | . . . . . 731 324 2732 Melee 51 | . . . 51 . . . . Ramming 6 | 6 . . . . . . . Kinetic 2597 | . 229 20 790 1300 . . 258 Thermal 1615 | . . . . . 182 804 629 Explosive . | . . . . . . . . Electromagnetic 1891 | 66 265 . . . 665 324 571 Impact 51 | . . . 51 . . . . Slashing . | . . . . . . . . Piercing . | . . . . . . . . Entropic 1982 | . . . . . . . 1982 Highest Corruption 18 | . . . 1 3 3 15 18 Average Corruption 8 | . . . 1 2 3 12 13 Corruption Purged . | . . . . . . . . Corruption Blocked . | . . . . . . . . Effects 91 | . . . 2 1 20 53 15 Message Errors 22 | . . . 1 . 5 10 6 Matter Fused 25 | . . . . . 5 17 3 Heat Flow Errors 11 | . . . . . 3 7 1 Energy Discharges 9 | . . . . . 1 6 2 Data Loss (minor) 12 | . . . 1 . 2 8 1 Data Loss (major) 3 | . . . . 1 1 1 . Misfires 3 | . . . . . 1 2 . Alerts 2 | . . . . . 1 1 . Misdirections 2 | . . . . . . . 2 Weapon Failures 2 | . . . . . 1 1 . Overload Shots 17 | . . . . . . 12 5 Effects 3 | . . . . . . 3 . Energy Bleed 1 | . . . . . . 1 . Heat Surge 2 | . . . . . . 2 . Overflow Damage 158 | . . . 68 . 7 21 62 Projectiles 17 | . . . 17 . . . . Explosions 90 | . . . . . 7 21 62 Melee 51 | . . . 51 . . . . Knockbacks 15 | . 2 . 9 4 . . . Impact 1 | . . . 1 . . . . Kinetic 14 | . 2 . 8 4 . . . Secondary . | . . . . . . . . Self-Inflicted Damage 82 | . . . . . . 5 77 Shots 4 | . . . . . . 1 3 Rammed 1 | 1 . . . . . . . Targets Rammed 1 | 1 . . . . . . . Kicked . | . . . . . . . . Crushed . | . . . . . . . . Highest Temperature 316 | 36 87 . 316 151 270 200 200 Average Temperature 98 | 18 41 . 145 61 97 117 103 Received Heat Transfer 817 | . 135 . 331 60 66 9 216 Effects 3 | . . . 2 . . 1 . Energy Bleed 1 | . . . 1 . . . . Interference 2 | . . . 1 . . 1 . Siege Activations . | . . . . . . . . Martial Activations . | . . . . . . . . Shielding Activations . | . . . . . . . . Robots Disrupted . | . . . . . . . . Combat Hostiles . | . . . . . . . . Robots Corrupted 5 | . . . 1 . 3 . 1 Combat Hostiles 5 | . . . 1 . 3 . 1 Parts Fried 7 | 2 . . 2 . 2 1 . Impact Corruptions 2 | . . . 2 . . . . Robots Melted . | . . . . . . . . Combat Hostiles . | . . . . . . . . Parts Melted 5 | . . . . . . 4 1 Heat Transferred 2012 | . . . . . 235 920 857 Parts Sabotaged . | . . . . . . . . Parts Stolen 1 | . . . 1 . . . . Parts Stripped . | . . . . . . . . Power Chain Reactions 4 | . . . . . 3 . 1 Alert | -11 -10 -10 -7 -5 -5 -5 -5 ------- Run | Yrd Mat Sub Scr Fac Upp Upp War Maximum Alert Level . | . . . . . . . . Low Security (%) 100 | 100 100 . . 100 . . . Level 1 . | . . . . . . . . Level 2 . | . . . . . . . . Level 3 . | . . . . . . . . Level 4 . | . . . . . . . . Level 5 . | . . . . . . . . High Security . | . . . . . . . . Max Security . | . . . . . . . . Peak Influence 80 | 5 60 . . 80 . . . Initial . | . . . . . . . . Average 14 | . 18 . . 14 . . . Influence Increases 1393 | 5 171 . . 242 360 170 445 Destroy 0b10 Robot/C 1020 | . 120 . . 140 280 140 340 Destroy 0b10 Robot/NC 35 | 5 15 . . 15 . . . Destroy Leader 116 | . 26 . . 40 20 30 . Successful Hack 10 | . 10 . . . . . . Disable Machine 15 | . . . . 15 . . . Destroy Structure 32 | . . . . 32 . . . Lose Combat Pursuer 165 | . . . . . 60 . 105 Influence Decreases 1128 | 5 154 17 . 226 376 170 180 Entered New Map 16 | . . 9 . . 7 . . Time Decay 848 | 5 134 8 . 176 329 170 26 Lost Part 212 | . 20 . . 18 20 . 154 Lost Ally 20 | . . . . . 20 . . Purge Threat 32 | . . . . 32 . . . Squads Dispatched 3 | . 1 . . 2 . . . Investigation 1 | . 1 . . . . . . Extermination 2 | . . . . 2 . . . Reinforcement . | . . . . . . . . Assault . | . . . . . . . . Garrison . | . . . . . . . . Intercept . | . . . . . . . . Searches Triggered . | . . . . . . . . Construction Impeded . | . . . . . . . . Haulers Reinforced . | . . . . . . . . Active Scanning Responses . | . . . . . . . . Cargo Convoy Interrupts . | . . . . . . . . Stealth | -11 -10 -10 -7 -5 -5 -5 -5 --------- Run | Yrd Mat Sub Scr Fac Upp Upp War Distress Signals . | . . . . . . . . Communications Jammed . | . . . . . . . . Distress Signals . | . . . . . . . . Times Spotted 122 | . 8 . 28 7 15 8 56 Peak Tracking Total 33 | . 4 . 6 4 5 5 33 Tactical Retreats 5 | . . . 1 . 2 . 2 Traps | -11 -10 -10 -7 -5 -5 -5 -5 ------- Run | Yrd Mat Sub Scr Fac Upp Upp War Traps Triggered . | . . . . . . . . Indirectly . | . . . . . . . . Trap Hack Attempts . | . . . . . . . . Triggered . | . . . . . . . . Disarmed . | . . . . . . . . Reprogrammed . | . . . . . . . . Reused . | . . . . . . . . Traps Extracted . | . . . . . . . . Installed . | . . . . . . . . Triggered . | . . . . . . . . Machines | -11 -10 -10 -7 -5 -5 -5 -5 ---------- Run | Yrd Mat Sub Scr Fac Upp Upp War Machines Disabled 4 | . . . 1 1 . . 2 Max in Single Turn 1 | . . . 1 1 . . 1 Garrison Access 1 | . . . . 1 . . . Machines Repaired . | . . . . . . . . Machines Dismantled . | . . . . . . . . Machines Sabotaged . | . . . . . . . . Overloaded Fab Kills . | . . . . . . . . Hacking | -11 -10 -10 -7 -5 -5 -5 -5 --------- Run | Yrd Mat Sub Scr Fac Upp Upp War Machines Accessed 19 | . 3 . 8 4 2 . 2 Terminals 4 | . 2 . . 2 . . . Fabricators . | . . . . . . . . Repair Stations 1 | . . . . 1 . . . Recycling Units 1 | . 1 . . . . . . Scanalyzers . | . . . . . . . . Garrison Access 1 | . . . . 1 . . . Total Hacks 79 | . 9 . 47 11 6 . 6 Successful 68 | . 3 . 47 6 6 . 6 Failed 11 | . 6 . . 5 . . . Catastrophic 2 | . 1 . . 1 . . . Database Lockouts . | . . . . . . . . Manual 7 | . 1 . 2 4 . . . Terminals 13 | . 6 . . 7 . . . Fabricators . | . . . . . . . . Repair Stations 2 | . . . . 2 . . . Recycling Units 3 | . 3 . . . . . . Scanalyzers . | . . . . . . . . Garrison Access 2 | . . . . 2 . . . Terminal Hacks 63 | . 3 . 47 1 6 . 6 Record 54 | . . . 47 . 5 . 2 Prototype ID Bank 6 | . 2 . . . . . 4 Open Door 1 | . . . . . 1 . . Unreport Threat 1 | . . . . 1 . . . Hauler Manifests 1 | . 1 . . . . . . Fabricator Hacks . | . . . . . . . . Repair Station Hacks 2 | . . . . 2 . . . Scan Component 1 | . . . . 1 . . . Repair 1 | . . . . 1 . . . Recycling Unit Hacks . | . . . . . . . . Scanalyzer . | . . . . . . . . Garrison Access Hacks 1 | . . . . 1 . . . Seal Access 1 | . . . . 1 . . . Unauthorized Hacks 2 | . . . . 2 . . . Terminals 2 | . . . . 2 . . . Botnet 2 | . . . . 2 . . . Fabricators . | . . . . . . . . Repair Stations . | . . . . . . . . Recycling Units . | . . . . . . . . Scanalyzers . | . . . . . . . . Garrison Access . | . . . . . . . . Data Cores Recovered . | . . . . . . . . Used . | . . . . . . . . Hacking Detections 7 | . 3 . . 4 . . . Full Trace Events 1 | . 1 . . . . . . Feedback Events . | . . . . . . . . Feedback Blocked . | . . . . . . . . Robot Schematics Acquired . | . . . . . . . . Robots Built . | . . . . . . . . Authchips . | . . . . . . . . Time . | . . . . . . . . Total Robot Build Rating . | . . . . . . . . Part Schematics Acquired . | . . . . . . . . Parts Built . | . . . . . . . . Authchips . | . . . . . . . . Time . | . . . . . . . . Total Part Build Rating . | . . . . . . . . Parts Repaired 1 | . . . . 1 . . . Time 19 | . . . . 19 . . . Parts Recycled . | . . . . . . . . Recycled Matter . | . . . . . . . . Retrieved Matter . | . . . . . . . . Retrieved Components . | . . . . . . . . Parts Scanalyzed . | . . . . . . . . Part Schematics Acquired . | . . . . . . . . Parts Damaged . | . . . . . . . . Bothacking | -11 -10 -10 -7 -5 -5 -5 -5 ------------ Run | Yrd Mat Sub Scr Fac Upp Upp War Used RIF Installer . | . . . . . . . . Robots Hacked . | . . . . . . . . Non-combat . | . . . . . . . . Combat . | . . . . . . . . Robot Hacks Applied . | . . . . . . . . Relay Couplers Released . | . . . . . . . . Fabnet Peak Effective % . | . . . . . . . . Robots Rewired . | . . . . . . . . Allies Hacked . | . . . . . . . . Hacks Repelled . | . . . . . . . . Allies | -11 -10 -10 -7 -5 -5 -5 -5 -------- Run | Yrd Mat Sub Scr Fac Upp Upp War Total Allies . | . . . . . . . . Largest Group . | . . . . . . . . Highest-Rated Group . | . . . . . . . . Highest-Rated Ally . | . . . . . . . . Total Orders 4 | . . . . . 3 1 . EXPLORE 4 | . . . . . 3 1 . Ally Attacks . | . . . . . . . . Total Damage . | . . . . . . . . Kills . | . . . . . . . . Allies Corrupted . | . . . . . . . . Allies Melted 9 | . . . 6 . . . 3 Intel | -11 -10 -10 -7 -5 -5 -5 -5 ------- Run | Yrd Mat Sub Scr Fac Upp Upp War Active Infowar (turns) 5280 | . . . . 840 831 1366 2243 Optics 4813 | . . . . 373 831 1366 2243 Sensors 700 | . . . . 700 . . . Robot Analysis Total . | . . . . . . . . Derelict Logs Recovered 2 | . . . . . 1 1 . Drone Launches 7 | . . . . . 6 1 . Drone Recoveries 4 | . . . . . 4 . . Exploration | -11 -10 -10 -7 -5 -5 -5 -5 ------------- Run | Yrd Mat Sub Scr Fac Upp Upp War Turns Passed 10840 | 105 392 114 4625 1007 831 1366 2400 Spaces Moved 4372 | 53 186 69 2213 363 299 383 806 Core 62 | 5 . . 1 . . . 56 Treads 4086 | 48 186 69 2212 363 299 383 526 Legs 9 | . . . . . . . 9 Wheels . | . . . . . . . . Hover . | . . . . . . . . Flight 215 | . . . . . . . 215 Fastest Speed 42 | 50 160 160 157 158 158 245 42 Average Speed 223 | 149 160 160 190 223 244 338 277 Slowest Speed 500 | 160 160 160 500 238 245 400 400 Overloaded Moves . | . . . . . . . . Propulsion Burnouts . | . . . . . . . . Robots Hopped 7 | . . . . . . . 7 Potential Cave-ins . | . . . . . . . . Cave-ins Triggered . | . . . . . . . . Exploration Rate (%) 46 | 4 31 8 94 11 79 59 88 Regions Visited 7 Branch Regions 5 Pre-discovered Areas 2 | . . . . . 2 . . Known Exits Taken 3 | . . . . 1 1 1 . Unknown Exits Taken 4 | 1 1 1 1 . . . . Scrap Searched 10 | . . . 6 . 4 . . Spaces Dug 2 | . . . . . . . 2 Terrain Destroyed 107 | . . . 3 18 24 2 60 Melee 2 | . . . . . . . 2 Projectile 30 | . . . 3 18 5 2 2 AOE 75 | . . . . . 19 . 56 Terrain Rammed . | . . . . . . . . Walls Destroyed . | . . . . . . . . Machines Disabled . | . . . . . . . . Actions | -11 -10 -10 -7 -5 -5 -5 -5 --------- Run | Yrd Mat Sub Scr Fac Upp Upp War Total 5132 | 70 228 73 2573 490 372 419 907 Wait 363 | 2 8 . 253 36 17 7 40 Move 4354 | 53 185 68 2212 362 298 382 794 Hop 5 | . . . . . . . 5 Pick Up 64 | 6 6 2 23 16 10 . 1 Fast Attach 31 | 4 . . 10 4 1 . 12 Attach 33 | 2 2 . 4 12 2 2 9 Detach 13 | . . . 2 3 1 1 6 Swap 55 | . . . 18 14 14 7 2 Drop 54 | . . 2 26 9 11 1 5 Fire 150 | 3 27 1 23 34 18 19 25 Melee 10 | . . . 2 . . . 8 Ram . | . . . . . . . . Kick . | . . . . . . . . Crush . | . . . . . . . . Escape Stasis . | . . . . . . . . Rewire . | . . . . . . . . Trap . | . . . . . . . . Miscellaneous . | . . . . . . . . Route ------- -11/Scrapyard -10/Materials (discovered 2 exits: [*Min] / [*Sub]) -10/Subcaves -7/Scraptown (discovered 2 exits: *Fac x2) -5/Factory -5/Upper Caves -5/Upper Caves -5/Warlord History --------- Turn | Location | Event 16 | -11/Scrapyard | Discovered new exit (range 15) 106 | -11/Scrapyard | Entered Materials 308 | -10/Materials | Build established: Mutant 464 | -10/Materials | Discovered new exit (range 15) 475 | -10/Materials | Discovered new exit (range 13) 498 | -10/Materials | Entered Subcaves 499 | -10/Subcaves | Approached by a straggling Scientist 580 | -10/Subcaves | Scientist uncovered a shortcut to Scraptown 586 | -10/Subcaves | Shifting Twisted Machinery released Slug Cannon 594 | -10/Subcaves | Shifting Twisted Machinery released Battle Rifle 598 | -10/Subcaves | Shifting Twisted Machinery released Piercing Trap 612 | -10/Subcaves | Entered Scraptown 1161 | -7/Scraptown | Visited Shadow of the Wyrm 1198 | -7/Scraptown | Visited Junk Repository 1256 | -7/Scraptown | Visited Red Mages 1323 | -7/Scraptown | Visited Cyclists 1390 | -7/Scraptown | Visited CPS Storage 1895 | -7/Scraptown | Visited IN-MT5's Study 1952 | -7/Scraptown | Visited Comm Corps 2058 | -7/Scraptown | Discovered new exit (range 5) 2295 | -7/Scraptown | Visited UFD Registry 2295 | -7/Scraptown | Registered with UFD as "Steampod" 2359 | -7/Scraptown | Entered Cyclist Reading Room 2479 | -7/Scraptown | Visited Observation Area 2591 | -7/Scraptown | Visited Modified Component R&D 2755 | -7/Scraptown | Visited A0-MCA Data Center 2765 | -7/Scraptown | Given a B+ rating by A0-MCA 2771 | -7/Scraptown | Found A0-MCA's Component Scanner 2818 | -7/Scraptown | Visited DA-N13 Charitable Foundation 2829 | -7/Scraptown | Found DCF Scrap (28 items) 3005 | -7/Scraptown | Visited Curators Association 3142 | -7/Scraptown | Build established: Derelict-Mutant 3524 | -7/Scraptown | Visited Scrap Suit Storage 3595 | -7/Scraptown | Visited Scrapoid Research Area 3677 | -7/Scraptown | Build established: Mutant 3739 | -7/Scraptown | Visited Abandonware Association 3776 | -7/Scraptown | Learned abandonware demo "HACKBUD.EXE" 3776 | -7/Scraptown | Learned abandonware demo "KABOOM.EXE" 3837 | -7/Scraptown | Visited LU-1G1's Boring Crew 4333 | -7/Scraptown | Discovered new exit (range 5) 4514 | -7/Scraptown | Met Optimus 4514 | -7/Scraptown | Accepted into 0bPrime 4914 | -7/Scraptown | Civil war broke out across Scraptown 4974 | -7/Scraptown | Core integrity fell below 50% 5172 | -7/Scraptown | Core integrity fell below 20% 5237 | -7/Scraptown | Entered Factory 5237 | -5/Factory | Evolved 10 slots: Propulsion x3, Utility x6, Weapon x1 5243 | -5/Factory | Lost 8 allies 5622 | -5/Factory | Build established: Derelict-Tank 5934 | -5/Factory | Discovered new exit (range 20) 5976 | -5/Factory | Identified exit to Upper Caves 6057 | -5/Factory | Repaired Arm. Treads 6238 | -5/Factory | Spotted B-75 Beast 6244 | -5/Factory | Entered Upper Caves 6266 | -5/Upper Caves | Found DCF Scrap (10 items) 6372 | -5/Upper Caves | Learned location of Armory (-4) 6551 | -5/Upper Caves | Attracted the attention of an 0b10 checkpoint 6705 | -5/Upper Caves | Discovered new exit (range 69) 6933 | -5/Upper Caves | Entered an active Warlord outpost 7004 | -5/Upper Caves | Learned Research stockpile data 7004 | -5/Upper Caves | Learned Research terminal intel 7004 | -5/Upper Caves | Learned Extension garrison access intel 7072 | -5/Upper Caves | Identified exit to Upper Caves 7075 | -5/Upper Caves | Entered another Upper Caves area 7163 | -5/Upper Caves | System corruption reached 10% 7448 | -5/Upper Caves | Build established: Scavenger-Tank 7469 | -5/Upper Caves | Spotted B-75 Beast 7493 | -5/Upper Caves | Destroyed B-75 Beast 8401 | -5/Upper Caves | Discovered new exit (range 10) 8437 | -5/Upper Caves | Identified exit to Warlord 8441 | -5/Upper Caves | Entered Warlord 8577 | -5/Warlord | System corruption cleaned by Quarantine Array 9596 | -5/Warlord | Rebuked by Warlord 9621 | -5/Warlord | Warlord's base attacked by MAIN.C 9971 | -5/Warlord | Warlord forces counterattacked 10296 | -5/Warlord | Warlord base infiltrated, sounded retreat 10568 | -5/Warlord | Spotted Executioner 10576 | -5/Warlord | Destroyed Executioner 10646 | -5/Warlord | Spotted Striker 10649 | -5/Warlord | Spotted Striker 10650 | -5/Warlord | Spotted B-75 Beast 10653 | -5/Warlord | Destroyed Striker 10681 | -5/Warlord | Destroyed Striker 10684 | -5/Warlord | Released all parts (8) 10712 | -5/Warlord | Lost 12 parts (1p2n5u4w) 10766 | -5/Warlord | Met EX-DEC 10769 | -5/Warlord | Found Prototype Launcher 10769 | -5/Warlord | Identified Vortex Catalyst Activator 10803 | -5/Warlord | Spotted Striker 10804 | -5/Warlord | Spotted Striker 10804 | -5/Warlord | Spotted Executioner 10804 | -5/Warlord | Spotted Executioner 10805 | -5/Warlord | Core integrity fell below 50% 10813 | -5/Warlord | Lost 6 allies 10819 | -5/Warlord | Core integrity fell below 20% 10841 | -5/Warlord | Destroyed by Striker with Compact Linear Accelerator Last Messages --------------- 10809_ Dropped Imp. Heat Sink. 10811_ ANNOUNCEMENT: MAIN.C reinforcements approaching through caves, arriving soon. 10814_ Door malfunctions. 10816_ P-70 Sage destroyed. 10816_ S-27 Virus destroyed. 10816_ P-70 Sage destroyed. 10816_ S-27 Virus destroyed. 10816_ Destroyed Adv. Heat Sink. 10816_ Destroyed Sml. Battery. 10816_ P-80 Master destroyed. 10816_ P-70 Sage destroyed. 10816_ Destroyed Imp. Antigrav System. 10816_ Destroyed Sml. Battery. 10818_ Vortex Catalyst Activator destroyed. 10818_ Slug penetrates Wall. 10820_ Knocked back. 10821_ ANNOUNCEMENT: Detected 3 Grunt squads, 1 Saboteur squad, with prototype support. 10830_ M658HX&LCYCYX#=>TRQ4YRO#AEG Map ----- +----------------------------------------------------+ | #######""#####??????????????# #?# #?? | | #?????#""#?????????????????? ### #?? | | #?????#""#????????????????? ### ##?? | | #?????#""#????????????????? ##?# #??? | | ##????#""#???????????????? ???## ##??? | | #????#""????????????????# ????## #???? | | #???????????????????????# #?????# #???? | | #???????????????????????# ??????## ##??? | | #???????????????????????# ??????## #??? | | #??????????????????????? ?????## ^#??? | | ###?????????????????????? ?????# #??? | | ##??????????????????????? #??????# #??? | | #??????????????????????? ;???????# #??? | | #?????????????????????? g ???????# #??? | | #???????????????????????x ???????## ##??? | | #####????????????????????g ???????? #???? | | #??????????????????##g ???????? ##???? | | #??????????????????# ???????#####????? | | #??????????????????# #????????????????? | | #??????????????????# #????????????????? | | #??????????????????# #????????????????? | | #??????????????????# #????????????????? | | #??????????????????# #????????????????? | | #??????????????????# #????????????????? | | #?????###??????????# #????????????????? | | #"+"#######X############ @#????????????????? | | K%K #????????????????? | | #????????????????? | | ###########################????????????????? | | ???????????????????????????????????????????? | | ???????????????????????????????????????????? | | ???????????????????????????????????????????? | | ???????????????????????????????????????????? | | ???????????????????????????????????????????? | | | | | | | | | | | | | | | | | | | | | | | | | | | | | | | | | +----------------------------------------------------+ Best States ------------- Heat Dissipation 66 Energy Generation 29 Energy Capacity 350 Matter Stores 300 Matter Capacity 300 Sight Range 22 Robot Scan Range 16 Terrain Scan Density 10 Armor Coverage 825 Resistance: TH 10 Power Shielding 90 Evasion (%) 61 Core Analysis 6 Recoil Reduction 3 Offensive Hacking 22 Authchip Count 1 Item Schematics ----------------- None Robot Schematics ------------------ None Fabricated ------------ Nothing Repaired ---------- Arm. Treads | 39% | -5/Factory Alien Tech Used ----------------- None Achievements -------------- Overkill Challenges ------------ None Game ------ Seed VisualProcessingThrower Manual? 0 Play Time 01:43:12 Cumulative 192.9 hours Start 2025.05.22 @ 02:54:45 End 2025.05.22 @ 12:18:57 Sessions 3 Manual Loads 0 Difficulty Rogue Special Mode None Game No. 152 Rogue 152 Adventurer 0 Explorer 0 Win Type - Total 10 Types 10/0/0/0/0/0/0/0/0/0 Lore% 61 Gallery% 64 Achievement% 58 Wizard Run 0 Options --------- Layout 0 ASCII 0 Keyboard 1 Movement Numpad Keybinds 0 Fullscreen 2 Font 36/Smallcaps Map View 76x50 Zoom Use 0% Tactical HUD 1 Map Filters NONE Filters NONE Steam 1 RUN: 2dcbe537-ba5b-4783-8a06-4b88bd76662f